bitfinex-derivatives/quotes_ETHF0:USTF0_20250918
["timestamp","ask_amount","ask_price","bid_price","bid_amount"]
[1758228459139,0.89816,4606.3,4606.2,0.9298]
[1758228459740,0.89816,4606.3,4606.2,0.98937002]
[1758228460138,0.39056,4606.3,4606.2,0.98937002]
[1758228461452,0.58273,4606.7,4606.6,0.3949]
[1758228461648,0.89813,4606.7,4606.6,4.1376]
[1758228461945,0.89813,4606.7,4606.6,4.19717002]
[1758228462948,1.10803,4606.7,4606.6,4.19717002]
[1758228473850,1.10803,4606.7,4606.6,3.26737002]
[1758228474047,1.10803,4606.7,4606.6,0.21800002]
[1758228474246,1.10803,4606.7,4606.5,0.68864]
[1758228474247,1.08594,4606.6,4606.5,0.68864]
[1758228474549,1.30302,4606.6,4606.5,0.90664]
[1758228474748,1.08594,4606.6,4606.5,0.90664]
[1758228475053,1.08594,4606.6,4606.5,1.19634]
[1758228476158,1.08594,4606.6,4606.5,0.68864]
[1758228476756,1.08594,4606.6,4606.5,0.90664]
[1758228476956,1.08594,4606.6,4606.5,0.68864]
[1758228477156,0.1215,4606.0,4605.9,0.2897]
[1758228477460,1.21019,4606.0,4605.9,0.218]
[1758228477856,1.09221,4605.7,4605.6,3.9269]
[1758228478059,1.09221,4605.7,4605.6,4.1449]
[1758228482556,1.09221,4605.7,4605.6,3.9269]
[1758228482963,1.09221,4605.7,4605.6,4.1449]
[1758228483763,1.09221,4605.7,4605.6,3.9269]
[1758228483963,1.09221,4605.7,4605.6,4.1449]
[1758228484162,1.09221,4605.7,4605.6,3.9269]
[1758228484364,1.09221,4605.7,4605.6,4.1449]
[1758228489367,0.58881,4605.7,4605.6,4.1449]
[1758228490072,0.39061,4605.7,4605.6,3.9269]
[1758228490272,0.39061,4605.7,4605.6,4.1449]
[1758228500377,0.7016,4606.6,4606.5,0.7191]
[1758228500578,0.9187,4606.6,4606.5,0.9371]
[1758228500779,1.09214,4606.6,4606.5,0.9371]
[1758228503178,0.39054,4606.6,4606.5,1.0587]
[1758228503580,0.97627,4607.0,4606.5,0.7411]
[1758228503776,0.5887,4607.0,4606.9,0.4015]
[1758228503982,0.3905,4607.0,4606.9,0.9371]
[1758228505180,0.39049,4607.2,4606.9,0.9371]
[1758228505385,0.39049,4607.2,4607.1,0.7191]
[1758228505580,0.39049,4607.2,4607.1,0.9371]
[1758228506780,0.97614,4607.6,4607.5,0.5231]
[1758228506781,0.58865,4607.6,4607.5,0.5231]
[1758228506988,0.89925,4607.6,4607.5,1.0587]
[1758228507479,0.89925,4607.6,4607.5,3.2293]
[1758228507680,0.89925,4607.6,4607.5,3.0113]
[1758228507881,1.09205,4607.6,4607.5,3.2293]
[1758228508082,1.09205,4607.6,4607.5,2.6913]
[1758228508390,1.09205,4607.6,4607.5,2.3886]
[1758228514189,1.09205,4607.6,4607.5,2.474]
[1758228514491,1.09205,4607.6,4607.5,2.692]
[1758228514691,1.09205,4607.6,4607.5,2.8887]
[1758228517595,1.09205,4607.6,4607.5,2.6707]
[1758228517796,1.09205,4607.6,4607.5,2.8887]
[1758228522198,1.09205,4607.6,4607.5,2.22808]
[1758228522393,1.09205,4607.6,4607.5,0.30974884]
[1758228522594,1.09205,4607.6,4607.5,8.84e-06]
[1758228523403,1.09205,4607.6,4607.5,0.50010884]
[1758228523599,1.09205,4607.6,4607.5,0.5001]
[1758228523905,1.09205,4607.6,4607.5,0.8134]
[1758228527218,1.62373203,4607.6,4607.5,0.8134]
[1758228528321,1.87065094,4607.6,4607.5,0.8134]
[1758228529416,1.87065094,4607.6,4607.5,1.0314]
[1758228530020,1.87065094,4607.6,4607.5,0.9157]
[1758228531822,1.87065094,4607.6,4607.5,0.6977]
[1758228536321,1.62373203,4607.6,4607.5,0.6977]
[1758228536525,1.87103316,4607.6,4607.5,0.6977]
[1758228536723,1.67823316,4607.6,4607.5,0.8203]
[1758228536918,1.36763316,4607.6,4607.5,0.8203]
[1758228537224,1.86423316,4607.6,4607.5,0.8203]
[1758228537619,1.86423316,4607.6,4607.5,0.6977]
[1758228541423,1.36763316,4607.6,4607.5,0.8227]
[1758228541623,1.16943316,4607.6,4607.5,0.8227]
[1758228542024,1.16943316,4607.6,4607.5,1.0407]
[1758228542229,1.89453316,4607.6,4607.5,0.9157]
[1758228543731,1.89453316,4607.6,4607.5,0.6977]
[1758228543931,1.89453316,4607.6,4607.5,0.9157]
[1758228545028,1.89453316,4607.6,4607.5,0.6977]
[1758228545234,1.89453316,4607.6,4607.5,0.9157]
[1758228546735,1.89453316,4607.6,4607.5,1.0407]
[1758228547935,1.89453316,4607.6,4607.5,0.8227]
[1758228548133,1.89453316,4607.6,4607.5,1.0407]
[1758228548630,1.89453316,4607.6,4607.5,0.8227]
[1758228548834,1.89453316,4607.6,4607.5,1.0407]
[1758228549133,1.89453316,4607.6,4607.5,0.9157]
[1758228552238,1.89453316,4607.6,4607.5,0.7181]
[1758228554438,0.79917,4607.3,4607.2,0.3206]
[1758228554636,1.36287113,4607.3,4607.2,0.7424]
[1758228555943,1.89579404,4607.3,4607.2,0.9466]
[1758228556138,1.89579404,4607.3,4607.2,0.7286]
[1758228556335,1.38199404,4607.3,4607.2,0.9466]
[1758228556537,1.69839404,4607.3,4607.2,0.7286]
[1758228556742,1.69839404,4607.3,4607.2,0.9466]
[1758228557043,0.63777113,4607.3,4607.2,0.9249]
[1758228557841,0.84907113,4607.3,4607.2,0.9249]
[1758228558142,0.63777113,4607.3,4607.2,0.9249]
[1758228558346,0.39047,4607.3,4607.2,0.9249]
[1758228559445,0.91817,4607.3,4607.2,0.9249]
[1758228559742,1.11557,4607.3,4607.2,0.9249]
[1758228560338,1.89794864,4607.3,4607.2,0.9249]
[1758228562743,1.64842769,4607.3,4607.2,0.9249]
[1758228563446,1.13462769,4607.3,4607.2,0.9249]
[1758228563847,0.92332769,4607.3,4607.2,0.9249]
[1758228564446,0.39047,4607.3,4607.2,0.9249]
[1758228565147,0.91817,4607.3,4607.2,0.9249]
[1758228566446,1.11557,4607.3,4607.2,0.7069]
[1758228566745,1.11557,4607.3,4607.2,0.9249]
[1758228567046,0.39047,4607.3,4607.2,0.9249]
[1758228567745,0.91867,4607.3,4607.2,0.9249]
[1758228568248,0.60177,4607.3,4607.2,0.9249]
[1758228568547,0.39047,4607.3,4607.2,0.9249]
[1758228568747,0.59367,4607.3,4607.2,0.9249]
[1758228568948,0.91057,4607.3,4607.2,0.9249]
[1758228569643,1.44299541,4607.3,4607.2,0.9249]
[1758228569844,0.91057,4607.3,4607.2,0.9249]
[1758228570949,1.10237,4607.3,4607.2,0.9249]
[1758228572851,1.10237,4607.3,4607.2,0.9282]
[1758228574052,0.59367,4607.3,4607.2,0.9282]
[1758228575251,0.91057,4607.3,4607.2,0.9282]
[1758228575953,0.39047,4607.3,4607.2,0.9282]
[1758228579457,0.91057,4607.3,4607.2,0.9282]
[1758228579649,1.10239,4607.1,4607.0,0.0217]
[1758228579854,1.10239,4607.1,4607.0,1e-05]
[1758228580064,0.39051,4606.8,4606.7,1.71256]
[1758228580359,1.10241,4606.8,4606.7,1.93056]
[1758228581263,1.10241,4606.8,4606.7,1.46648]
[1758228581460,1.10241,4606.8,4606.7,0.218]
[1758228581762,1.10245,4606.4,4606.3,0.7232]
[1758228581966,1.10245,4606.4,4606.3,0.9412]
[1758228583961,1.10245,4606.4,4606.3,0.7232]
[1758228584162,0.39055,4606.4,4606.3,0.9412]
[1758228584463,0.39055,4606.4,4606.3,5.15829]
[1758228585368,0.39049,4607.1,4607.0,0.1259]
[1758228585569,0.39049,4607.1,4607.0,0.7597]
[1758228585962,0.39049,4607.1,4607.0,1.0671]
[1758228586167,0.59369,4607.1,4607.0,1.0671]
[1758228586463,0.39049,4607.1,4607.0,1.0671]
[1758228586769,0.91059,4607.1,4607.0,1.0671]
[1758228587569,0.59369,4607.1,4607.0,1.0671]
[1758228587772,1.10239,4607.1,4607.0,0.7232]
[1758228587969,1.10239,4607.1,4607.0,0.9412]
[1758228588264,0.59369,4607.1,4607.0,1.0671]
[1758228588469,0.39049,4607.1,4607.0,1.0671]
[1758228590470,0.97614,4607.6,4607.3,0.46751]
[1758228590665,0.59363,4607.8,4607.7,0.4158]
[1758228590867,1.10233,4607.8,4607.7,0.9412]
[1758228591068,1.10233,4607.8,4607.7,0.7337]
[1758228591460,1.10233,4607.8,4607.7,0.9412]
[1758228593072,1.10233,4607.8,4607.7,0.3074]
[1758228593372,1.10233,4607.8,4607.7,0.9412]
[1758228596170,1.10233,4607.8,4607.7,0.7337]
[1758228596371,1.10233,4607.8,4607.7,0.218]
[1758228597567,1.10233,4607.8,4607.7,0.4276]
[1758228597771,1.10233,4607.8,4607.7,0.9433]
[1758228601476,1.10233,4607.8,4607.7,0.7413]
[1758228601873,1.10233,4607.8,4607.7,0.4276]
[1758228602076,1.10233,4607.8,4607.7,0.218]
[1758228603881,1.10233,4607.8,4607.3,0.46751]
[1758228603882,0.7122,4607.4,4607.3,0.46751]
[1758228604087,1.10266,4607.4,4607.3,0.46751]
[1758228604779,1.10266,4607.4,4607.3,0.77141]
[1758228605182,1.10266,4607.4,4607.3,0.97771]
[1758228606582,1.10266,4607.4,4607.3,1.19051]
[1758228607580,0.39046,4607.4,4607.3,1.19051]
[1758228608779,0.89905,4607.8,4607.3,0.723]
[1758228609275,0.201,4607.7,4607.6,0.723]
[1758228609475,0.59144,4607.7,4607.6,0.723]
[1758228610083,0.90674,4607.7,4607.6,0.723]
[1758228610377,0.59144,4607.7,4607.6,0.723]
[1758228611284,0.39044,4607.7,4607.6,0.723]
[1758228612586,0.59144,4607.7,4607.6,0.723]
[1758228614289,0.90674,4607.7,4607.6,0.723]
[1758228614479,1.10264,4607.7,4607.6,0.723]
[1758228619286,0.7122,4607.7,4607.6,0.723]
[1758228619492,3.2078,4608.0,4607.9,1.57796]
[1758228619792,3.98839259,4608.0,4607.9,1.79596]
[1758228619988,4.37880259,4608.0,4607.9,2.00876]
[1758228621594,4.37880259,4608.0,4607.9,1.79076]
[1758228621796,4.37880259,4608.0,4607.9,2.00876]
[1758228628302,4.37880259,4608.0,4607.9,1.58966]
[1758228629002,4.37880259,4608.0,4607.9,1.80146]
[1758228629403,4.37880259,4608.0,4607.9,1.58346]
[1758228629804,0.39044,4607.7,4607.6,0.3053]
[1758228629997,1.17087063,4607.7,4607.6,0.3053]
[1758228631305,1.17087063,4607.7,4607.6,0.5171]
[1758228633508,1.17087063,4607.7,4607.6,0.3053]
[1758228633707,0.78043063,4607.7,4607.4,2.6939]
[1758228633906,0.9761,4607.8,4607.4,2.3886]
[1758228634203,3.59826,4607.5,4607.4,2.1706]
[1758228634409,5.18321183,4607.5,4607.4,1.17644]
[1758228634611,5.18321183,4607.5,4607.4,0.72962]
[1758228634804,5.18321183,4607.5,4607.4,0.28855]
[1758228635309,1.07777,4607.3,4607.2,0.218]
[1758228635513,1.85702183,4607.3,4607.2,0.218]
[1758228635910,0.39053,4606.6,4606.5,0.5416]
[1758228636111,1.07783,4606.6,4606.5,0.5416]
[1758228636312,1.07783,4606.6,4606.5,1.0649]
[1758228636813,1.07783,4606.6,4606.5,0.8469]
[1758228637008,1.07783,4606.6,4606.5,1.0649]
[1758228637204,1.07783,4606.6,4606.5,0.3053]
[1758228637407,1.20954,4606.5,4606.4,1.73057]
[1758228637613,1.20954,4606.5,4606.4,1.21453]
[1758228637810,1.20954,4606.5,4606.4,0.76897]
[1758228638007,1.20954,4606.5,4606.4,0.2223]
[1758228638715,1.09118,4606.1,4606.0,0.0217]
[1758228638908,1.09118,4606.1,4606.0,0.2397]
[1758228639608,1.09118,4606.1,4606.0,0.5388]
[1758228640009,1.09118,4606.1,4606.0,0.0217]
[1758228640204,0.97657,4605.6,4605.3,0.3053]
[1758228640404,0.89785,4605.3,4605.2,0.5171]
[1758228640608,1.09125,4605.3,4605.2,0.7351]
[1758228641011,1.09125,4605.3,4605.2,0.939]
[1758228643017,0.39065,4605.3,4605.2,0.939]
[1758228643813,0.89785,4605.3,4605.2,0.939]
[1758228646923,1.09125,4605.3,4605.2,0.939]
[1758228648713,0.39065,4605.3,4605.2,0.939]
[1758228648919,0.89785,4605.3,4605.2,0.939]
[1758228649221,1.09125,4605.3,4605.2,0.939]
[1758228649917,1.09125,4605.3,4605.2,0.721]
[1758228650117,0.39065,4605.3,4605.2,0.939]
[1758228650811,0.59715,4605.3,4605.2,0.939]
[1758228651018,1.09125,4605.3,4605.2,0.939]
[1758228651619,1.09125,4605.3,4605.2,0.721]
[1758228651829,1.09125,4605.3,4605.2,0.939]
[1758228661218,0.39065,4605.3,4605.2,5.54679]
[1758228661424,0.9765,4605.9,4605.7,0.3031]
[1758228661622,0.90266,4606.3,4606.2,0.6943]
[1758228661820,0.39056,4606.3,4606.2,0.9123]
[1758228665827,1.10716,4606.3,4606.2,0.1924]
[1758228666030,0.80148,4606.1,4606.0,2.3642]
[1758228666231,1.10718,4606.1,4606.0,2.8853]
[1758228666633,1.10718,4606.1,4606.0,2.5822]
[1758228666944,1.10718,4606.1,4606.0,2.8853]
[1758228667230,1.10718,4606.1,4606.0,2.6673]
[1758228667427,1.10718,4606.1,4606.0,2.8853]
[1758228667828,1.10718,4606.1,4606.0,3.0841]
[1758228668423,1.10718,4606.1,4606.0,3.2018]
[1758228669029,0.59698,4606.1,4606.0,3.2018]
[1758228669223,0.90268,4606.1,4606.0,3.2018]
[1758228669836,1.10718,4606.1,4606.0,3.2018]
[1758228670134,1.10718,4606.1,4606.0,3.0841]
[1758228671231,1.10718,4606.1,4606.0,2.1718]
[1758228671432,5.32429,4606.1,4606.0,2.3898]
[1758228671638,6.10546976,4606.1,4606.0,2.3898]
[1758228671838,6.10547599,4606.1,4606.0,2.3898]
[1758228672537,6.10547599,4606.1,4606.0,0.218]
[1758228672836,5.88836599,4606.1,4606.0,0.218]
[1758228673440,1.10722,4605.6,4605.5,2.1718]
[1758228673637,1.10722,4605.6,4605.5,2.3898]
[1758228673840,1.10722,4605.6,4605.5,2.1718]
[1758228674136,1.10722,4605.6,4605.5,2.3898]
[1758228674332,1.10722,4605.6,4605.5,0.218]
[1758228676349,1.10722,4605.6,4605.5,0.4104]
[1758228676556,1.10722,4605.6,4605.5,0.7135]
[1758228677452,1.10722,4605.6,4605.5,0.9123]
[1758228677750,0.39062,4605.6,4605.5,1.03]
[1758228678353,0.90272,4605.6,4605.5,0.812]
[1758228678552,1.10722,4605.6,4605.5,1.03]
[1758228678953,0.39062,4605.6,4605.5,1.03]
[1758228681149,0.90272,4605.6,4605.5,1.03]
[1758228681344,1.10722,4605.6,4605.5,0.6943]
[1758228681550,1.10722,4605.6,4605.5,0.9123]
[1758228683954,1.10722,4605.6,4605.5,0.6943]
[1758228684157,1.10722,4605.6,4605.5,0.9123]
[1758228684557,1.10722,4605.6,4605.5,0.4955]
[1758228684751,1.10722,4605.6,4605.5,0.7135]
[1758228686052,0.39066,4605.1,4605.0,2.4819]
[1758228686355,1.10726,4605.1,4605.0,2.781]
[1758228686656,1.10726,4605.1,4605.0,3.2018]
[1758228688159,0.39066,4605.1,4605.0,3.2018]
[1758228688561,0.59986,4605.1,4605.0,3.2018]
[1758228688859,0.91086,4605.1,4605.0,3.2018]
[1758228689861,0.91086,4605.1,4605.0,2.9838]
[1758228690062,0.91086,4605.1,4605.0,3.2018]
[1758228690258,0.39066,4605.1,4605.0,3.2018]
[1758228690656,0.59986,4605.1,4605.0,3.2018]
[1758228690854,0.91086,4605.1,4605.0,3.2018]
[1758228694867,0.59986,4605.1,4605.0,3.2018]
[1758228702570,0.39066,4605.1,4605.0,3.59247]
[1758228703072,0.39066,4605.1,4605.0,3.2018]
[1758228703273,0.39066,4605.1,4605.0,3.59247]
[1758228703675,0.39066,4605.1,4605.0,3.2018]
[1758228707877,0.91086,4605.1,4605.0,3.2018]
[1758228708077,0.39066,4605.1,4605.0,3.2018]
[1758228709780,0.39066,4605.1,4605.0,3.59247]
[1758228710778,0.39059,4605.9,4605.8,0.698]
[1758228710978,0.39059,4605.9,4605.8,0.916]
[1758228714174,0.59979,4605.9,4605.8,0.916]
[1758228714981,0.89239,4605.9,4605.8,0.916]
[1758228715980,1.09119,4605.9,4605.8,0.916]
[1758228718986,1.09119,4605.9,4605.8,0.698]
[1758228719386,1.09119,4605.9,4605.8,0.7217]
[1758228720486,0.80811,4605.7,4605.6,2.1718]
[1758228720785,1.11401,4605.7,4605.6,2.3898]
[1758228721980,1.11401,4605.7,4605.6,2.1718]
[1758228722289,1.89855843,4605.7,4605.6,2.1718]
[1758228722476,1.89855843,4605.7,4605.6,2.3898]
[1758228722878,1.89855843,4605.7,4605.6,0.218]
[1758228724589,0.80812,4605.6,4605.5,0.0217]
[1758228724881,1.11402,4605.6,4605.5,0.2397]
[1758228725087,1.11402,4605.6,4605.5,0.218]
[1758228725383,0.7234,4605.3,4605.2,0.716]
[1758228725583,1.11404,4605.3,4605.2,0.934]
[1758228727675,1.11404,4605.3,4605.2,0.716]
[1758228727885,1.11405,4605.2,4605.1,2.1718]
[1758228728187,1.89865891,4605.2,4605.1,1.22961]
[1758228728385,1.89865891,4605.2,4605.1,0.40184]
[1758228728689,0.93031,4604.5,4604.4,0.5147]
[1758228729082,1.05781,4604.5,4604.4,0.7327]
[1758228729693,1.11413,4604.3,4604.2,0.5364]
[1758228729887,1.11413,4604.3,4604.2,0.7544]
[1758228730392,1.11413,4604.3,4604.2,0.9557]
[1758228730985,1.11413,4604.3,4604.2,0.2397]
[1758228731988,4.32193,4604.3,4604.2,0.3302]
[1758228732189,4.32193,4604.3,4604.2,0.5482]
[1758228732391,4.32193,4604.3,4604.2,0.9557]
[1758228732889,4.32193,4604.3,4604.2,0.934]
[1758228736894,4.32193,4604.3,4604.2,0.7327]
[1758228737195,4.32193,4604.3,4604.2,0.218]
[1758228737401,4.32193,4604.3,4604.2,0.7327]
[1758228738994,4.32193,4604.3,4604.2,0.2062]
[1758228739197,1.11415,4604.1,4604.0,0.5364]
[1758228739495,0.90425,4604.1,4604.0,1.0493]
[1758228740899,0.39075,4604.1,4604.0,1.0493]
[1758228742701,0.39075,4604.1,4604.0,3.2217]
[1758228743499,0.39073,4604.4,4604.2,0.3085]
[1758228743690,0.39073,4604.4,4604.3,0.4075]
[1758228744000,0.39073,4604.4,4604.3,0.716]
[1758228744402,0.39063,4605.5,4605.4,0.2013]
[1758228744699,0.59823,4605.5,4605.4,0.934]
[1758228744892,0.90413,4605.5,4605.4,0.934]
[1758228746001,1.11403,4605.5,4605.4,0.934]
[1758228746302,1.24153,4605.5,4605.4,0.934]
[1758228747194,1.11403,4605.5,4605.4,0.934]
[1758228750604,1.11403,4605.5,4605.4,0.716]
[1758228750802,1.11403,4605.5,4605.4,0.934]
[1758228751005,0.39063,4605.5,4605.4,0.934]
[1758228751201,0.69693,4605.5,4605.4,0.8406]
[1758228751503,1.21613,4605.5,4605.4,0.218]
[1758228751698,0.69699,4604.8,4604.7,5.7868]
[1758228751905,1.09859,4604.8,4604.7,6.0048]
[1758228752702,1.09859,4604.8,4604.7,5.7868]
[1758228752910,1.09859,4604.8,4604.7,6.0048]
[1758228753212,1.09859,4604.8,4604.7,6.1896]
[1758228753396,1.09859,4604.8,4604.7,5.9716]
[1758228753601,1.09859,4604.8,4604.7,6.1896]
[1758228754601,0.88899,4604.8,4604.7,6.1896]
[1758228756603,1.09859,4604.8,4604.7,2.579]
[1758228756803,1.09859,4604.8,4604.7,2.3904]
[1758228759809,1.09859,4604.8,4604.7,2.5871]
[1758228760213,1.09859,4604.8,4604.7,2.3691]
[1758228760404,1.09859,4604.8,4604.7,2.5871]
[1758228761812,1.09859,4604.8,4604.7,2.3904]
[1758228763612,1.09859,4604.8,4604.7,2.1724]
[1758228763814,1.09859,4604.8,4604.7,1.95022]
[1758228764712,1.09859,4604.8,4604.7,1.68224]
[1758228764911,1.09859,4604.8,4604.7,1.1842]
[1758228765115,1.09859,4604.8,4604.7,0.69468]
[1758228765308,1.09859,4604.8,4604.7,0.1967]
[1758228765516,0.69704,4604.2,4604.1,0.1848]
[1758228765816,0.69704,4604.2,4604.1,0.218]
[1758228766405,0.88904,4604.2,4604.1,0.218]
[1758228769623,0.69704,4604.2,4604.1,0.218]
[1758228771122,0.39074,4604.2,4604.1,0.218]
[1758228771623,0.69704,4604.2,4604.1,0.218]
[1758228772124,0.88904,4604.2,4604.1,0.218]
[1758228773127,0.2096,4604.4,4604.3,1.47976]
[1758228773321,0.4016,4604.4,4604.3,2.20356]
[1758228773520,0.79232,4604.4,4604.3,2.20356]
[1758228774020,0.39072,4604.4,4604.3,2.20356]
[1758228774921,0.58822,4604.4,4604.3,2.20356]
[1758228775126,0.88232,4604.4,4604.3,2.20356]
[1758228775326,0.39072,4604.4,4604.3,2.20356]
[1758228775717,0.88232,4604.4,4604.3,2.20356]
[1758228779931,0.88232,4604.4,4604.3,5.41136]
[1758228781627,0.39072,4604.4,4604.3,5.41136]
[1758228782328,1.10242,4604.4,4604.3,5.41136]
[1758228783031,0.90882,4604.4,4604.3,5.41136]
[1758228786930,1.10242,4604.4,4604.3,5.19336]
[1758228787130,1.10242,4604.4,4604.3,5.41136]
[1758228788134,1.10242,4604.4,4604.3,5.11546]
[1758228788635,1.10242,4604.4,4604.3,5.42286]
[1758228789139,0.90882,4604.4,4604.3,5.42286]
[1758228789938,0.39072,4604.4,4604.3,5.42286]
[1758228790138,0.69812,4604.4,4604.3,5.42286]
[1758228791933,0.90882,4604.4,4604.3,5.42286]
[1758228796043,1.10242,4604.4,4604.3,5.42286]
[1758228797441,1.10242,4604.4,4604.3,5.20486]
[1758228797636,1.10242,4604.4,4604.3,5.42286]
[1758228798338,1.10242,4604.4,4604.3,5.20486]
[1758228798539,1.10242,4604.4,4604.3,4.90556]
[1758228800044,0.69812,4604.4,4604.3,5.42456]
[1758228800244,0.90882,4604.4,4604.3,5.42456]
[1758228801242,0.39072,4604.4,4604.3,5.42456]
[1758228801545,0.69812,4604.4,4604.3,5.42456]
[1758228802045,0.90882,4604.4,4604.3,5.42456]
[1758228802736,1.10242,4604.4,4604.3,2.21676]
[1758228805847,0.90882,4604.4,4604.3,2.21676]
[1758228806041,0.39072,4604.4,4604.3,2.21676]
[1758228816153,0.39072,4604.4,4604.3,2.43395]
[1758228816851,0.39072,4604.4,4604.3,2.21676]
[1758228817657,0.39072,4604.4,4604.3,2.60749]
[1758228817862,0.39072,4604.4,4604.3,6.60749]
[1758228818556,0.39072,4604.4,4604.3,6.21676]
[1758228819254,0.39072,4604.4,4604.3,2.21676]
[1758228820454,0.39072,4604.4,4604.3,2.60749]
[1758228822251,0.39071,4604.6,4604.5,0.8193]
[1758228822457,0.39071,4604.6,4604.5,1.0373]
[1758228823160,0.5133,4605.0,4604.9,1.58839]
[1758228823361,1.10267,4605.0,4604.9,5.01419]
[1758228824057,1.21927,4605.0,4604.9,5.01419]
[1758228826265,1.21927,4605.0,4604.9,4.79619]
[1758228826467,1.21927,4605.0,4604.9,5.01419]
[1758228829962,1.21927,4605.0,4604.9,4.79619]
[1758228830166,1.10267,4605.0,4604.9,5.01419]
[1758228831367,1.21927,4605.0,4604.9,5.01419]
[1758228831567,0.69197,4605.0,4604.9,5.01419]
[1758228831961,0.90397,4605.0,4604.9,1.80639]
[1758228832970,1.10267,4605.0,4604.9,1.80639]
[1758228834371,1.10267,4605.0,4604.9,1.58839]
[1758228834570,1.10267,4605.0,4604.9,1.80639]
[1758228836072,1.10267,4605.0,4604.9,1.58839]
[1758228836271,1.10267,4605.0,4604.9,1.80639]
[1758228837172,5.44403001,4605.0,4604.7,0.0217]
[1758228837362,5.44403001,4605.0,4603.5,0.1125]
[1758228837363,0.97686,4604.2,4603.9,3.2078]
[1758228837568,1.22716,4604.0,4603.9,3.7074]
[1758228837767,1.22716,4604.0,4603.9,4.1247]
[1758228838475,1.22716,4604.0,4603.9,3.2078]
[1758228839071,0.39075,4604.1,4604.0,0.6336]
[1758228839278,0.39075,4604.1,4604.0,0.8516]
[1758228839669,0.39075,4604.1,4604.0,1.0542]
[1758228841974,0.39075,4604.1,4604.0,0.8362]
[1758228842175,0.39075,4604.1,4604.0,1.0542]
[1758228842375,0.39075,4604.1,4604.0,0.8516]
[1758228842781,0.39075,4604.1,4604.0,1.0542]
[1758228849382,3.2078,4604.5,4604.0,0.7456]
[1758228849583,0.97682,4604.4,4604.1,0.1973]
[1758228849780,0.39073,4604.3,4604.2,0.9265]
[1758228859291,3.2078,4604.5,4604.4,1.00175]
[1758228859486,3.59851,4604.5,4604.4,1.31035]
[1758228860093,3.59851,4604.5,4604.4,1.51295]
[1758228860692,3.59846,4605.1,4605.0,0.1277]
[1758228860897,0.39066,4605.1,4605.0,1.0542]
[1758228861794,3.2078,4605.8,4605.5,0.1277]
[1758228861998,3.5984,4605.8,4605.7,0.7085]
[1758228862299,0.97638,4606.4,4605.7,0.7085]
[1758228862493,3.2078,4606.5,4606.3,0.3999]
[1758228862796,3.2078,4606.5,4606.3,0.7085]
[1758228862797,0.53895979,4606.4,4606.3,0.7085]
[1758228862996,0.39055,4606.4,4606.3,0.7085]
[1758228864498,1.95222,4607.8,4606.3,0.7085]
[1758228864499,3.59829,4607.2,4607.1,0.3999]
[1758228864693,3.59829,4607.2,4607.1,0.7085]
[1758228864999,0.97605,4608.1,4607.6,0.7085]
[1758228865000,3.59824,4607.7,4607.6,0.7085]
[1758228868492,3.59824,4607.7,4607.6,0.3086]
[1758228868691,3.59824,4607.7,4607.6,0.709]
[1758228872905,3.59824,4607.7,4607.6,0.5023]
[1758228873205,3.59824,4607.7,4607.6,0.3086]
[1758228875903,3.59824,4607.7,4607.5,0.1277]
[1758228876109,0.97616,4607.5,4607.2,0.1937]
[1758228876407,0.39047,4607.4,4607.3,0.4859]
[1758228877695,0.39047,4607.4,4607.3,0.2922]
[1758228877899,0.39049,4607.2,4607.1,1.0967]
[1758228878101,3.59829,4607.2,4607.1,1.0967]
[1758228880513,3.59829,4607.2,4607.1,1.4971]
[1758228882611,3.59829,4607.2,4607.1,1.2904]
[1758228882807,3.59829,4607.2,4607.1,0.63408]
[1758228883012,0.1684,4606.7,4606.6,0.1937]
[1758228883308,0.55893,4606.7,4606.6,0.1937]
[1758228884604,0.97628,4607.0,4606.7,1.80567]
[1758228884911,0.39052,4606.8,4606.7,2.30457]
[1758228891003,0.39052,4606.8,4606.7,2.52257]
[1758228895718,0.39052,4606.8,4606.7,2.30457]
[1758228895914,0.39052,4606.8,4606.7,2.52257]
[1758228904422,0.39052,4606.8,4606.7,2.30457]
[1758228904722,0.39052,4606.8,4606.7,2.52257]
[1758228911427,0.39052,4606.8,4606.7,2.30457]
[1758228911621,1.17389449,4606.8,4606.7,1.86307]
[1758228911822,1.17389449,4606.8,4606.7,1.87437]
[1758228912531,1.17383626,4606.8,4606.7,1.87437]
[1758228912824,1.17383626,4606.8,4606.7,0.47344]
[1758228913031,0.79074,4606.6,4606.5,0.1277]
[1758228913330,0.96715,4606.4,4606.3,0.154]
[1758228913530,1.50706201,4606.4,4606.3,0.154]
[1758228914032,0.59018,4606.1,4606.0,0.5225]
[1758228914328,0.59018,4606.1,4606.0,0.7405]
[1758228914529,3.79798,4606.1,4606.0,0.7405]
[1758228914926,3.79798,4606.1,4606.0,2.9118]
[1758228915126,3.79798,4606.1,4606.0,3.2263]
[1758228916133,4.71441553,4606.1,4606.0,3.0083]
[1758228916428,5.1755508,4606.1,4606.0,2.05757]
[1758228916626,5.1755508,4606.1,4606.0,1.17952]
[1758228916928,0.39061,4605.8,4605.7,0.2205]
[1758228917128,1.07931,4605.8,4605.7,0.535]
[1758228918034,1.07931,4605.8,4605.7,0.5133]
[1758228920129,0.39063,4605.5,4605.4,0.218]
[1758228920334,1.07933,4605.5,4605.4,0.4168]
[1758228920634,0.39063,4605.5,4605.4,0.9273]
[1758228922134,0.39063,4605.5,4605.4,4.1351]